{"text_format":"2","workbook":"xlsx","n_sheets":2,"sheets":["GROUP INFO & CENSUS","Data Validation Sheet"],"not_rendered":{"charts":0,"images":1,"macros":0,"external_links":0,"defined_names":1,"comments":0,"pivot_tables":0},"unopened":[],"bounds":{"document_bytes":16777216,"sheet_cells":100000,"run_cost":"one","rows_first":2000,"rows_last":500,"rows_between":2000,"halvings":0,"cell_chars":16384,"cell_head_chars":4096},"cells_cut":0,"cells_raw":0,"read":"whole","date_system":"1900"}

{"sheet":"GROUP INFO & CENSUS","index":0,"n_rows":50,"n_cols":17,"rows_kept":50,"cut":false,"hidden":false,"merged":[[1,7,4,14],[1,15,5,17]]}
[]
[{"$nulls":7},"Guarantee Issue Products\nEmployee Census / Enrollment Form\nFor PSI Members",{"$nulls":7},"Complete this form completely. Email addresses are required for any plan participant that will download or use online tools, including telemedicine services.\n\n"]
[]
[]
[]
[]
[]
[null,"Product","Member Type","SSN","Last Name","First Name","MI","Gender","DOB","Address","City","State","Zip Code","Phone","Email","Primary Member SSN","Relationship to Primary"]
[null,"Basic ","Employee","000-00-0000","EXAMPLE","Example",null,"Male","2000-11-12","6101 West Courtyard Dr.","Austin","TX",78730,"(000) 000-0001","John_Example@gmail.com"," "," "]
[null," ","Dependent","123-45-6789","EXAMPLE","Example",null,"Female","2000-11-13","12345 South Main St.","Tallahassee","FL",12345,"(000) 000-0000",null,"000-00-0000","Spouse / Child"]
[]
[]
[]
[]
[]
[null,null,null," ",{"$nulls":6},{"$f":"IF(J16=\"\",\"\",INT(YEARFRAC(J16,TODAY())))","v":""}]
[null,null,null," ",{"$nulls":6},""]
[null,null,null," ",{"$nulls":6},""]
[null,null,null," ",{"$nulls":6},""]
[null,null,null," ",{"$nulls":6},""]
[null,null,null," ",{"$nulls":6},""]
[null,null,null," ",{"$nulls":6},""]
[null,null,null," ",{"$nulls":6},""]
[null,null,null," ",{"$nulls":6},""]
[null,null,null," ",{"$nulls":6},""]
[null,null,null," ",{"$nulls":6},""]
[null,null,null," ",{"$nulls":6},""]
[null,null,null," ",{"$nulls":6},""]
[null,null,null," ",{"$nulls":6},""]
[null,null,null," ",{"$nulls":6},""]
[null,null,null," ",{"$nulls":6},""]
[null,null,null," ",{"$nulls":6},""]
[null,null,null," ",{"$nulls":6},""]
[null,null,null," ",{"$nulls":6},""]
[null,null,null," ",{"$nulls":6},""]
[null,null,null," ",{"$nulls":6},""]
[null,null,null," ",{"$nulls":6},""]
[null,null,null," ",{"$nulls":6},""]
[null,null,null," ",{"$nulls":6},""]
[null,null,null," ",{"$nulls":6},""]
[null,null,null," ",{"$nulls":6},""]
[null,null,null," ",{"$nulls":6},""]
[null,null,null," ",{"$nulls":6},""]
[null,null,null," ",{"$nulls":6},""]
[null,null,null," ",{"$nulls":6},""]
[null,null,null," ",{"$nulls":6},""]
[null,null,null," ",{"$nulls":6},""]
[null,null,null," ",{"$nulls":6},""]
[null,null,null," ",{"$nulls":6},""]
[null,null,null," ",{"$nulls":6},""]

{"sheet":"Data Validation Sheet","index":1,"n_rows":9,"n_cols":18,"rows_kept":9,"cut":false,"hidden":true,"merged":[]}
[null,"Basic Virtual","RxMarket","Employee",{"$nulls":4},"Male",{"$nulls":8},"Spouse"]
[null,"Basic  ","TrueScripts","Dependant",{"$nulls":4},"Female",{"$nulls":8},"Child"]
[null,"Basic Plus Option 1",{"$nulls":15},"Other"]
[null,"Basic Plus Option 2"]
[null,"Basic Plus Option 3"]
[null,"Basic Plus Option 4"]
[null,"Enhanced 10"]
[null,"Enhanced 5"]
[null,"Enhanced 2.5"]